bitfinex-derivatives/quotes_BTCF0:USTF0_20251119
["timestamp","ask_amount","ask_price","bid_price","bid_amount"]
[1763569668469,0.04566,89726.0,89725.0,0.00016718]
[1763569670470,0.04666,89726.0,89725.0,0.00016718]
[1763569670863,0.001,89726.0,89725.0,0.00016718]
[1763569671768,0.04666,89726.0,89725.0,0.00016718]
[1763569672359,0.04666,89726.0,89710.0,0.26065173]
[1763569672570,0.04566,89707.0,89706.0,0.3608]
[1763569672770,0.36299803,89720.0,89709.0,0.04267]
[1763569672771,0.00219803,89710.0,89709.0,0.04267]
[1763569673160,0.3608,89720.0,89709.0,0.04267]
[1763569673368,0.00219803,89720.0,89719.0,0.04267]
[1763569674273,0.40965803,89720.0,89706.0,0.36096718]
[1763569676174,0.04885803,89720.0,89710.0,0.26065173]
[1763569676380,0.04885803,89720.0,89714.0,0.3608]
[1763569676775,0.00319803,89720.0,89719.0,0.04267]
[1763569677974,0.02629803,89720.0,89719.0,0.02137]
[1763569678374,0.02629803,89720.0,89714.0,0.3608]
[1763569678375,0.0231,89713.0,89706.0,0.00016718]
[1763569678781,0.04566,89707.0,89706.0,0.00016718]
[1763569679084,0.04566,89687.0,89683.0,0.3608]
[1763569679291,0.04566,89687.0,89674.0,0.3608]
[1763569680477,0.00219803,89690.0,89689.0,0.02137]
[1763569680674,0.02529803,89690.0,89674.0,0.3608]
[1763569680874,0.02529803,89690.0,89689.0,0.04267]
[1763569680875,0.00219803,89690.0,89689.0,0.04267]
[1763569681281,0.02529803,89690.0,89689.0,0.04267]
[1763569681481,0.00219803,89690.0,89689.0,0.04267]
[1763569681684,0.04680803,89690.0,89674.0,0.3608]
[1763569681994,0.04263,89678.0,89674.0,0.3608]
[1763569682388,0.00219803,89680.0,89679.0,0.04563]
[1763569682695,0.00016718,89695.0,89694.0,0.04563]
[1763569683695,0.3608,89712.0,89711.0,0.04563]
[1763569683992,0.3608,89724.0,89721.0,0.0231]
[1763569684192,0.3608,89733.0,89729.0,0.04563]
[1763569684193,0.00219803,89730.0,89729.0,0.04563]
[1763569684686,0.00016718,89738.0,89737.0,0.04563]
[1763569684892,0.00219803,89740.0,89739.0,0.04563]
[1763569685394,0.00016718,89746.0,89745.0,0.0231]
[1763569685691,0.00016718,89746.0,89745.0,0.05926]
[1763569685888,0.00016718,89746.0,89745.0,0.42006]
[1763569686886,0.02128718,89746.0,89737.0,0.3608]
[1763569687088,0.3608,89742.0,89730.0,0.27428173]
[1763569687283,0.00219803,89740.0,89730.0,0.27428173]
[1763569687886,0.00219803,89740.0,89729.0,0.00016718]
[1763569687887,0.04263,89730.0,89729.0,0.00016718]
[1763569688084,0.04482803,89730.0,89729.0,0.00016718]
[1763569689392,0.02331803,89730.0,89729.0,0.00016718]
[1763569689797,0.00319803,89730.0,89729.0,0.02326718]
[1763569689983,0.00319803,89730.0,89729.0,0.04579718]
[1763569690184,0.001,89730.0,89729.0,0.04579718]
[1763569690388,0.00319803,89730.0,89729.0,0.04579718]
[1763569690998,0.00319803,89730.0,89729.0,0.00016718]
[1763569691198,0.04582803,89730.0,89729.0,0.00016718]
[1763569692193,0.04482803,89730.0,89729.0,0.00016718]
[1763569692999,0.04582803,89730.0,89729.0,0.00016718]
[1763569693400,0.04482803,89730.0,89729.0,0.00016718]
[1763569693702,0.04582803,89730.0,89729.0,0.00016718]
[1763569694397,0.00319803,89730.0,89729.0,0.04579718]
[1763569694999,0.00219803,89730.0,89729.0,0.04579718]
[1763569695304,0.001,89730.0,89729.0,0.04579718]
[1763569695798,0.36096718,89746.0,89741.0,0.04563]
[1763569696998,0.36196718,89746.0,89741.0,0.04563]
[1763569697990,0.04263,89742.0,89729.0,0.00016718]
[1763569698301,0.36196718,89746.0,89729.0,0.00016718]
[1763569698302,0.02112,89730.0,89729.0,0.00016718]
[1763569698604,0.04482803,89730.0,89729.0,0.00016718]
[1763569699502,0.00219803,89730.0,89729.0,0.04579718]
[1763569700302,0.00319803,89730.0,89729.0,0.04579718]
[1763569700905,0.001,89730.0,89729.0,0.04579718]
[1763569701203,0.00016718,89746.0,89745.0,0.05926]
[1763569702009,0.3608,89770.0,89765.0,0.04563]
[1763569702397,0.36299803,89770.0,89765.0,0.0231]
[1763569702599,0.36299803,89770.0,89765.0,0.04563]
[1763569702904,0.3608,89770.0,89765.0,0.04563]
[1763569703104,0.00016718,89774.0,89765.0,0.04563]
[1763569703410,0.00016718,89774.0,89773.0,0.04563]
[1763569704706,0.00016718,89774.0,89773.0,0.0231]
[1763569704906,0.00016718,89774.0,89773.0,0.04563]
[1763569705505,0.36096718,89774.0,89773.0,0.04563]
[1763569705698,0.00219803,89770.0,89761.0,0.3608]
[1763569705903,0.00016718,89774.0,89773.0,0.04386]
[1763569707004,0.3608,89782.0,89781.0,0.04386]
[1763569707808,0.00219803,89780.0,89769.0,0.3608]
[1763569708005,0.00219803,89780.0,89779.0,0.04386]
[1763569708405,0.00016708,89783.0,89782.0,0.04386]
[1763569708708,0.3608,89809.0,89782.0,0.40466]
[1763569708900,0.3608,89809.0,89805.0,0.05727]
[1763569709101,0.3608,89827.0,89805.0,0.05727]
[1763569709305,0.3608,89819.0,89805.0,0.05727]
[1763569709507,0.3608,89819.0,89810.0,0.26065173]
[1763569709706,0.3608,89819.0,89806.0,0.00016708]
[1763569709907,0.40639,89819.0,89806.0,0.00016708]
[1763569710298,0.04559,89807.0,89806.0,0.00016708]
[1763569711503,0.04559,89795.0,89784.0,0.3608]
[1763569711710,0.00219803,89790.0,89784.0,0.3608]
[1763569712408,0.0438,89785.0,89777.0,0.3608]
[1763569712610,0.3608,89784.0,89777.0,0.3608]
[1763569712806,0.3608,89784.0,89772.0,0.00016708]
[1763569713009,0.00219803,89780.0,89779.0,0.04586]
[1763569713208,0.00159803,89780.0,89779.0,0.04586]
[1763569713405,0.0438,89776.0,89775.0,0.3608]
[1763569713612,0.0438,89776.0,89772.0,0.00016708]
[1763569713909,0.02214,89773.0,89772.0,0.00016708]
[1763569714812,0.0438,89773.0,89772.0,0.00016708]
[1763569715016,0.0438,89767.0,89742.0,0.36089411]
[1763569715219,0.38294,89746.0,89745.0,0.01199897]
[1763569715516,0.0438,89743.0,89713.0,0.3608]
[1763569715705,0.3608,89724.0,89720.0,0.00059999]
[1763569716216,0.3608,89724.0,89723.0,0.04586]
[1763569716417,0.3598,89724.0,89723.0,0.04586]
[1763569716619,0.35991228,89724.0,89723.0,0.04586]
[1763569717319,0.35991228,89724.0,89723.0,0.02286]
[1763569718017,0.00011228,89724.0,89723.0,0.02286]
[1763569718208,0.00011228,89724.0,89723.0,0.04586]
[1763569718410,0.00016718,89731.0,89730.0,0.04586]
[1763569718712,0.00016718,89731.0,89730.0,0.04645999]
[1763569719315,0.3608,89752.0,89730.0,0.04645999]
[1763569719506,0.00219803,89750.0,89742.0,0.3608]
[1763569719706,0.00219803,89750.0,89749.0,0.04586]
[1763569720317,0.3608,89766.0,89744.0,0.01261]
[1763569720318,0.00016718,89758.0,89757.0,0.04586]
[1763569720621,0.36096718,89758.0,89757.0,0.04586]
[1763569720915,0.36096718,89758.0,89744.0,0.01261]
[1763569721110,0.00219803,89750.0,89749.0,0.04586]
[1763569723123,0.00016718,89758.0,89757.0,0.04586]
[1763569723319,0.00016718,89758.0,89757.0,0.40666]
[1763569724722,0.00016718,89758.0,89757.0,0.04586]
[1763569726317,0.3608,89771.0,89770.0,0.04586]
[1763569726624,0.3608,89771.0,89770.0,0.04645999]
[1763569727728,0.001,89771.0,89770.0,0.04645999]
[1763569728024,0.001,89771.0,89770.0,0.02345999]
[1763569728227,0.001,89771.0,89770.0,0.04645999]
[1763569729319,0.0448,89771.0,89770.0,0.00059999]
[1763569730013,0.001,89771.0,89770.0,0.04645999]
[1763569731215,0.3608,89776.0,89775.0,0.04586]
[1763569731415,0.00016718,89779.0,89778.0,0.04586]
[1763569732328,0.04396718,89779.0,89768.0,0.01261]
[1763569732630,0.02214,89771.0,89770.0,0.00059999]
[1763569732816,0.0438,89771.0,89770.0,0.00059999]
[1763569733016,0.02214,89771.0,89770.0,0.02345999]
[1763569733430,0.0438,89771.0,89770.0,0.00059999]
[1763569734118,0.001,89771.0,89770.0,0.04645999]
[1763569734724,0.00016718,89779.0,89770.0,0.04645999]
[1763569734725,0.00016718,89779.0,89778.0,0.04586]
[1763569735717,0.1086,89794.0,89793.0,0.04586]
[1763569736830,0.1106,89794.0,89793.0,0.04586]
[1763569737530,0.0438,89791.0,89790.0,0.00059999]
[1763569737726,0.0438,89791.0,89785.0,0.00016709]
[1763569737930,0.0438,89786.0,89785.0,0.00016709]
[1763569738720,0.02214,89768.0,89767.0,0.3608]
[1763569738929,0.00219803,89770.0,89767.0,0.38366]
[1763569739235,0.00219803,89770.0,89769.0,0.04586]
[1763569739826,0.02433803,89770.0,89769.0,0.02286]
[1763569740027,0.02433803,89770.0,89761.0,0.00016709]
[1763569740230,0.02214,89762.0,89761.0,0.00016709]
[1763569740837,0.0438,89762.0,89761.0,0.00016709]
[1763569741043,0.0438,89758.0,89721.0,0.3608]
[1763569741229,0.00219803,89760.0,89716.0,0.3608]
[1763569741230,0.0438,89727.0,89726.0,0.00027863]
[1763569741539,0.01186,89726.0,89684.0,0.09276351]
[1763569741738,0.00219803,89710.0,89700.0,0.15593179]
[1763569742044,0.00219803,89710.0,89709.0,0.04483]
[1763569742333,0.02495803,89710.0,89702.0,0.3608]
[1763569742532,0.0001048,89709.0,89702.0,0.3608]
[1763569742830,0.3608,89708.0,89700.0,0.00059999]
[1763569743428,0.0001048,89709.0,89702.0,0.3608]
[1763569743621,0.0001048,89709.0,89708.0,0.045]
[1763569743827,0.1087048,89709.0,89708.0,0.045]
[1763569745033,0.1534048,89709.0,89702.0,0.3608]
[1763569745738,0.0447,89701.0,89700.0,0.00059999]
[1763569747027,0.0447,89697.0,89696.0,0.00016718]
[1763569747631,0.02194,89697.0,89681.0,0.3608]
[1763569747940,0.02276,89687.0,89681.0,0.3608]
[1763569748441,0.00219803,89690.0,89686.0,0.02330875]
[1763569748635,0.00219803,89690.0,89689.0,0.02303]
[1763569749036,0.00219803,89690.0,89689.0,0.045]
[1763569749941,0.00219803,89690.0,89689.0,0.4058]
[1763569750435,0.36096718,89698.0,89697.0,0.045]
[1763569750640,0.00016718,89698.0,89697.0,0.4058]
[1763569752434,0.00016718,89698.0,89697.0,0.045]
[1763569752641,0.00016718,89698.0,89688.0,0.1553318]
[1763569752642,0.02292718,89698.0,89688.0,0.5161318]
[1763569752846,0.02292718,89698.0,89690.0,0.00059999]
[1763569753044,0.00016718,89698.0,89697.0,0.045]
[1763569753936,0.3608,89708.0,89707.0,0.045]
[1763569754137,0.0001048,89709.0,89708.0,0.045]
[1763569754543,0.3608,89726.0,89725.0,0.045]
[1763569754742,0.0447,89721.0,89720.0,0.00059999]
[1763569754949,0.0447,89721.0,89705.0,0.3608]
[1763569754950,0.00219803,89720.0,89705.0,0.3608]
[1763569755143,0.00219803,89720.0,89710.0,0.00059999]
[1763569755738,0.3608,89717.0,89710.0,0.15593179]
[1763569755939,0.3608,89717.0,89710.0,0.00059999]
[1763569756246,0.0447,89711.0,89710.0,0.00059999]
[1763569757831,0.0447,89711.0,89704.0,0.00016718]
[1763569757832,0.0447,89705.0,89704.0,0.00016718]
[1763569759040,0.0457,89705.0,89704.0,0.00016718]
[1763569760547,0.001,89705.0,89704.0,0.04516718]
[1763569761342,0.0457,89705.0,89704.0,0.00016718]
[1763569761741,0.0447,89687.0,89677.0,0.3608]
[1763569761941,0.0447,89687.0,89680.0,0.1553318]
[1763569762538,0.0447,89687.0,89677.0,0.3608]
[1763569762852,0.0447,89687.0,89678.0,0.00016718]
[1763569763335,0.02276,89687.0,89678.0,0.00016718]
[1763569763537,0.00219803,89690.0,89689.0,0.02303]
[1763569763945,0.00219803,89690.0,89689.0,0.045]
[1763569766151,0.00016718,89695.0,89694.0,0.04631]
[1763569766840,0.3608,89708.0,89707.0,0.04533]
[1763569767943,0.3618,89708.0,89707.0,0.04533]
[1763569768145,0.001,89708.0,89707.0,0.04533]
[1763569768848,0.00219803,89710.0,89707.0,0.04533]
[1763569769056,0.001,89708.0,89707.0,0.04533]
[1763569769243,0.00219803,89710.0,89704.0,0.3608]
[1763569769244,0.00016718,89716.0,89715.0,0.05824]
[1763569769551,0.00016718,89716.0,89715.0,0.41904]
[1763569770146,0.02232718,89716.0,89715.0,0.02205]
[1763569770345,0.02232718,89716.0,89710.0,0.00059999]
[1763569770746,0.00016718,89716.0,89715.0,0.04533]
[1763569771042,0.02216,89713.0,89712.0,0.3608]
[1763569771237,0.0447,89713.0,89712.0,0.3608]
[1763569771644,0.00116718,89716.0,89712.0,0.40613]
[1763569772038,0.00116718,89716.0,89715.0,0.04488]
[1763569772242,0.00016718,89716.0,89715.0,0.04488]
[1763569773744,0.00116718,89716.0,89715.0,0.04488]
[1763569774753,0.02238718,89716.0,89715.0,0.04488]
[1763569775950,0.02222,89713.0,89712.0,0.3608]
[1763569776144,0.00016718,89716.0,89712.0,0.40568]
[1763569776349,0.00016718,89716.0,89715.0,0.04488]
[1763569777148,0.3608,89728.0,89727.0,0.04488]
[1763569777452,0.40634,89728.0,89712.0,0.37443]
[1763569777656,0.00219803,89720.0,89719.0,0.04488]
[1763569777840,0.04773803,89720.0,89712.0,0.37443]
[1763569778040,0.04554,89713.0,89712.0,0.3608]
[1763569778747,0.3608,89719.0,89712.0,0.04488]
[1763569779144,0.02222,89713.0,89712.0,0.04488]
[1763569779344,0.04554,89711.0,89710.0,0.00059999]
[1763569779841,0.04554,89711.0,89707.0,0.00016718]
[1763569779842,0.02222,89708.0,89707.0,0.00016718]
[1763569780045,0.04554,89708.0,89707.0,0.00016718]
[1763569780247,0.02222,89708.0,89707.0,0.04504718]
[1763569780450,0.00219803,89710.0,89709.0,0.04488]
[1763569782557,0.02222,89708.0,89707.0,0.00016718]
[1763569782945,0.02222,89708.0,89707.0,0.04504718]
[1763569783244,0.00319803,89710.0,89707.0,0.04504718]
[1763569783449,0.04773803,89710.0,89709.0,0.04488]
[1763569783649,0.00219803,89710.0,89709.0,0.04488]
[1763569784058,0.02441803,89710.0,89709.0,0.04488]
[1763569784558,0.00219803,89710.0,89709.0,0.04488]
[1763569784759,0.00319803,89710.0,89709.0,0.04488]
[1763569786858,0.00219803,89710.0,89709.0,0.04488]
[1763569787454,0.00319803,89710.0,89709.0,0.04488]
[1763569787853,0.00219803,89710.0,89709.0,0.04488]
[1763569788054,0.00319803,89710.0,89709.0,0.04488]
[1763569788249,0.001,89710.0,89709.0,0.04488]
[1763569788448,0.3608,89741.0,89724.0,0.05851]
[1763569788653,0.10864,89726.0,89724.0,0.05851]
[1763569788959,0.10864,89732.0,89724.0,0.05851]
[1763569791460,0.3608,89753.0,89731.0,0.04488]
[1763569791660,0.00219803,89740.0,89739.0,0.04488]
[1763569792960,0.00016718,89748.0,89747.0,0.04488]
[1763569793266,0.02238718,89748.0,89747.0,0.04488]
[1763569794047,0.04570718,89748.0,89736.0,0.01363]
[1763569794258,0.04670718,89748.0,89740.0,0.00059999]
[1763569794555,0.02338718,89748.0,89747.0,0.04488]
[1763569794859,0.00116718,89748.0,89747.0,0.04488]
[1763569795351,0.00116718,89748.0,89736.0,0.01363]
[1763569795352,0.04554,89742.0,89736.0,0.01363]
[1763569795555,0.02222,89741.0,89740.0,0.02345999]
[1763569795858,0.00116718,89748.0,89740.0,0.04547999]
[1763569796164,0.02222,89741.0,89740.0,0.04547999]
[1763569796355,0.04554,89741.0,89740.0,0.00059999]
[1763569797357,0.02222,89741.0,89740.0,0.04547999]
[1763569798255,0.04554,89741.0,89740.0,0.00059999]
[1763569798757,0.04554,89734.0,89733.0,0.38366]
[1763569798962,0.3608,89744.0,89733.0,0.40568]
[1763569799163,0.02222,89734.0,89733.0,0.40568]
[1763569799462,0.3608,89744.0,89733.0,0.40568]
[1763569799662,0.00219803,89740.0,89733.0,0.40568]
[1763569800367,0.04554,89732.0,89731.0,0.00016718]
[1763569800861,0.04554,89732.0,89714.0,0.3608]
[1763569800862,0.00219803,89730.0,89714.0,0.3608]
[1763569801067,0.04554,89721.0,89720.0,0.02345999]
[1763569801366,0.04554,89721.0,89720.0,0.00059999]
[1763569801559,0.00219803,89720.0,89706.0,0.40568]
[1763569801757,0.04355,89711.0,89710.0,0.02266999]
[1763569801958,0.04355,89711.0,89710.0,0.00059999]
[1763569802158,0.04355,89711.0,89710.0,0.02266999]
[1763569802359,0.04355,89711.0,89710.0,0.04579999]
[1763569802555,0.00016718,89719.0,89718.0,0.0452]
[1763569802866,0.02162,89708.0,89707.0,0.0452]
[1763569803067,0.04355,89711.0,89710.0,0.00059999]
[1763569803771,0.3608,89716.0,89715.0,0.0452]
[1763569804465,0.04355,89711.0,89710.0,0.00059999]
[1763569804766,0.04355,89704.0,89703.0,0.3608]
[1763569805068,0.04355,89704.0,89703.0,0.3607]
[1763569805454,0.04355,89704.0,89703.0,0.38277]
[1763569805660,0.04355,89704.0,89703.0,0.0452]
[1763569805975,0.04355,89703.0,89702.0,0.02223718]
[1763569806160,0.04355,89703.0,89702.0,0.00016718]
[1763569807373,0.04355,89703.0,89702.0,0.02223718]
[1763569807573,0.00016718,89719.0,89703.0,0.4]
[1763569807770,0.01336,89736.0,89718.0,0.3608]
[1763569807958,0.03872072,89783.0,89730.0,0.00059999]
[1763569808161,0.01439803,89760.0,89750.0,0.26062956]
[1763569808360,0.04355,89751.0,89750.0,0.00059999]
[1763569809067,0.01337,89752.0,89750.0,0.00059999]
[1763569809579,0.01337,89752.0,89750.0,0.00159999]
[1763569809772,0.00016718,89759.0,89750.0,0.00159999]
[1763569809969,0.00016718,89759.0,89757.0,0.3608]
[1763569810363,0.00016718,89759.0,89758.0,0.3608]
[1763569810563,0.37417,89778.0,89760.0,0.00059999]
[1763569811471,0.00010972,89772.0,89765.0,0.3608]
[1763569811862,0.01337,89791.0,89765.0,0.3608]
[1763569812076,0.00219803,89790.0,89781.0,0.26062956]
[1763569812369,0.04355,89781.0,89780.0,0.00059999]
[1763569812563,0.01337,89791.0,89780.0,0.36139999]
[1763569812769,0.00219803,89790.0,89788.0,0.3608]
[1763569812964,0.00219803,89800.0,89788.0,0.3608]
[1763569813166,0.00219803,89800.0,89799.0,0.3608]
[1763569813866,0.3608,89814.0,89800.0,0.00059999]
[1763569814067,0.04355,89801.0,89800.0,0.00059999]
[1763569814771,0.02162,89801.0,89800.0,0.00059999]
[1763569814969,0.02162,89801.0,89788.0,0.3608]
[1763569814970,0.04355,89791.0,89780.0,0.36096708]
[1763569815175,0.04355,89781.0,89780.0,0.36156707]
[1763569815471,0.01337,89792.0,89780.0,0.36156707]
[1763569815774,0.001,89801.0,89780.0,0.36156707]
[1763569815775,0.00219803,89790.0,89780.0,0.62219663]
[1763569815976,0.00219803,89790.0,89789.0,0.3608]
[1763569816177,0.001,89801.0,89790.0,0.00059999]
[1763569816475,0.001,89801.0,89800.0,0.3608]
[1763569816673,0.001,89801.0,89800.0,0.00059999]
[1763569816870,0.3608,89807.0,89800.0,0.00059999]
[1763569817066,0.01337,89808.0,89800.0,0.00059999]
[1763569817979,0.04355,89801.0,89800.0,0.00059999]
[1763569818177,0.01337,89808.0,89800.0,0.00059999]
[1763569818487,0.01337,89808.0,89806.0,0.3608]
[1763569818773,0.3608,89830.0,89806.0,0.3608]
[1763569818978,0.3608,89830.0,89829.0,0.3608]
[1763569818979,0.00219803,89830.0,89829.0,0.3608]
[1763569819474,0.3608,89845.0,89830.0,0.00059999]
[1763569819971,0.04355,89831.0,89830.0,0.00059999]
[1763569820379,0.3608,89844.0,89830.0,0.00059999]
[1763569820876,0.04355,89831.0,89830.0,0.00059999]
[1763569821080,0.04455,89831.0,89830.0,0.00059999]
[1763569821479,0.04355,89822.0,89821.0,0.36096698]
[1763569821977,0.01437,89835.0,89821.0,0.36096698]
[1763569822181,0.01437,89835.0,89832.0,0.3608]
[1763569822386,0.001,89835.0,89832.0,0.3608]
[1763569822681,0.04355,89833.0,89821.0,0.36096698]
[1763569822879,0.01437,89835.0,89821.0,0.36096698]
[1763569823281,0.04355,89830.0,89829.0,0.3608]
[1763569823781,0.01337,89856.0,89830.0,0.00219803]
[1763569823982,0.01337,89856.0,89842.0,0.3608]
[1763569824776,0.04355,89843.0,89842.0,0.3608]
[1763569824982,0.00127826,89846.0,89842.0,0.3608]
[1763569825581,0.04314,89843.0,89842.0,0.3608]
[1763569825784,0.04263,89830.0,89829.0,0.3608]
[1763569825979,0.04263,89822.0,89815.0,0.3608]
[1763569826176,0.04263,89822.0,89820.0,0.00219803]
[1763569827879,0.02111,89822.0,89820.0,0.00219803]
[1763569828084,0.0137,89824.0,89820.0,0.00219803]
[1763569828587,0.04263,89822.0,89820.0,0.00219803]
[1763569829081,0.40343,89822.0,89820.0,0.00219803]
[1763569829277,0.0137,89810.0,89807.0,0.3608]
[1763569829584,0.04263,89801.0,89800.0,0.00219803]
[1763569830581,0.00016631,89809.0,89800.0,0.00219803]
[1763569830985,0.00016631,89809.0,89800.0,0.00319803]
[1763569831779,0.00016631,89809.0,89808.0,0.02155]
[1763569831984,0.00016631,89809.0,89808.0,0.0431]
[1763569832679,0.04402,89808.0,89807.0,0.3608]
[1763569832878,0.02243,89798.0,89797.0,0.3608]
[1763569833085,0.00016631,89809.0,89797.0,0.38235]
[1763569833290,0.02159,89801.0,89800.0,0.00219803]
[1763569833585,0.00016631,89809.0,89800.0,0.02374803]
[1763569833978,0.00016631,89809.0,89808.0,0.4039]
[1763569834173,0.0137,89824.0,89823.0,0.0431]
[1763569834385,0.3608,89841.0,89823.0,0.4039]
[1763569834575,0.04402,89831.0,89830.0,0.00219803]
[1763569834976,0.3608,89833.0,89823.0,0.3608]
[1763569834977,0.05793,89824.0,89823.0,0.3608]
[1763569836290,0.04402,89821.0,89820.0,0.00219803]
[1763569836691,0.001,89824.0,89823.0,0.0431]
[1763569836889,0.3608,89833.0,89832.0,0.02155]
[1763569837090,0.3608,89857.0,89845.0,0.02155]
[1763569837286,0.3608,89864.0,89845.0,0.0431]
[1763569837594,0.01391,89880.0,89845.0,0.05470337]
[1763569837891,0.3608,89877.0,89861.0,0.3608]
[1763569838599,0.04402,89861.0,89860.0,0.00219803]
[1763569839284,0.02243,89861.0,89860.0,0.00219803]
[1763569839790,0.37471,89880.0,89860.0,0.02374803]
[1763569840086,0.05893,89866.0,89860.0,0.00219803]
[1763569840284,0.04402,89861.0,89860.0,0.00219803]
[1763569840481,0.02343,89861.0,89860.0,0.00219803]
[1763569840787,0.04502,89861.0,89860.0,0.00219803]
[1763569840992,0.04402,89855.0,89854.0,0.3608]
[1763569841194,0.01391,89866.0,89854.0,0.4039]
[1763569841195,0.01491,89866.0,89854.0,0.4039]
[1763569841388,0.3608,89862.0,89850.0,0.00219803]
[1763569841578,0.3608,89862.0,89850.0,0.02374803]
[1763569841891,0.04402,89845.0,89844.0,0.3608]
[1763569842487,0.04402,89841.0,89840.0,0.00219803]
[1763569843086,0.3608,89846.0,89833.0,0.3608]
[1763569843087,0.04402,89838.0,89833.0,0.3608]
[1763569844690,0.04502,89838.0,89833.0,0.3608]
[1763569845291,0.001,89838.0,89837.0,0.02171698]
[1763569845500,0.001,89838.0,89837.0,0.04326698]
[1763569845888,0.10844,89847.0,89837.0,0.04326698]
[1763569846192,0.10844,89847.0,89842.0,0.3608]
[1763569846388,0.02243,89843.0,89842.0,0.3608]
[1763569846594,0.04402,89843.0,89842.0,0.3608]
[1763569846795,0.10844,89847.0,89840.0,0.00219803]
[1763569846796,0.04402,89841.0,89840.0,0.00219803]
[1763569846996,0.04402,89838.0,89837.0,0.00016698]
[1763569849492,0.001,89838.0,89837.0,0.02171698]
[1763569849701,0.001,89838.0,89837.0,0.04326698]
[1763569849888,0.04402,89841.0,89840.0,0.00219803]
[1763569851090,0.04502,89841.0,89840.0,0.00219803]
[1763569852896,0.05793,89838.0,89837.0,0.00016698]
[1763569853996,0.10844,89847.0,89840.0,0.04529803]
[1763569854504,0.04402,89841.0,89840.0,0.00219803]
[1763569855002,0.10844,89847.0,89840.0,0.04529803]
[1763569855191,0.04402,89841.0,89840.0,0.00219803]
[1763569856900,0.05793,89838.0,89837.0,0.00016698]
[1763569857297,0.03634,89838.0,89837.0,0.04326698]
[1763569857490,0.05793,89838.0,89837.0,0.00016698]
[1763569858896,0.05793,89838.0,89837.0,0.02171698]
[1763569859093,0.001,89841.0,89840.0,0.04529803]
[1763569859403,0.10844,89847.0,89840.0,0.04529803]
[1763569859701,0.01391,89850.0,89842.0,0.3608]
[1763569859997,0.01391,89850.0,89849.0,0.02155]
[1763569860199,0.10844,89858.0,89850.0,0.00219803]
[1763569860397,0.10844,89858.0,89857.0,0.4039]
[1763569861097,0.15246,89858.0,89857.0,0.3608]
[1763569861598,0.04391,89858.0,89857.0,0.3608]
[1763569861801,0.01391,89866.0,89860.0,0.00219803]
[1763569862108,0.04391,89861.0,89860.0,0.00219803]
[1763569862305,0.04391,89852.0,89851.0,0.3608]
[1763569864595,0.05698,89843.0,89842.0,0.3608]
[1763569865797,0.05798,89843.0,89842.0,0.3608]
[1763569866195,0.05798,89843.0,89842.0,0.38235]
[1763569866592,0.001,89843.0,89842.0,0.40367]
[1763569867306,0.000244,89843.0,89842.0,0.40367]
[1763569867501,0.021824,89843.0,89842.0,0.40367]
[1763569867696,0.000244,89843.0,89842.0,0.40367]
[1763569867894,0.02158,89843.0,89842.0,0.40367]
[1763569868094,0.04391,89841.0,89840.0,0.00219803]
[1763569868304,0.00839,89830.0,89826.0,0.3608]
[1763569868601,0.04391,89821.0,89820.0,0.00219803]
[1763569869008,0.3608,89827.0,89820.0,0.04607803]
[1763569869705,0.04391,89821.0,89820.0,0.00219803]
[1763569870003,0.3608,89827.0,89815.0,0.00016698]
[1763569870004,0.04391,89816.0,89815.0,0.00016698]
[1763569870305,0.40471,89816.0,89815.0,0.00016698]
[1763569870509,0.40471,89816.0,89800.0,0.15505762]
[1763569870510,0.04391,89807.0,89800.0,0.15505762]
[1763569871406,0.04391,89807.0,89791.0,0.37158]
[1763569871602,0.04391,89807.0,89798.0,0.00016698]
[1763569871809,0.04391,89799.0,89798.0,0.00016698]
[1763569872100,0.51315,89799.0,89798.0,0.00016698]
[1763569872301,0.04391,89797.0,89783.0,0.3608]
[1763569872494,0.04391,89784.0,89772.0,0.08015351]
[1763569872694,0.40471,89784.0,89770.0,0.15725565]
[1763569872899,0.40471,89784.0,89771.0,0.3608]
[1763569873507,8.455e-05,89783.0,89771.0,0.3608]
[1763569873808,0.3608,89775.0,89770.0,0.00219803]
[1763569874106,0.04391,89771.0,89770.0,0.00219803]
[1763569874407,0.04391,89770.0,89769.0,0.00016708]
[1763569874602,0.04391,89754.0,89742.0,0.45003359]
[1763569874800,0.04291,89754.0,89750.0,0.00219803]
[1763569875507,0.02158,89751.0,89750.0,0.00219803]
[1763569875708,0.04391,89746.0,89745.0,0.00016708]
[1763569875902,0.15235,89746.0,89745.0,0.00016708]
[1763569876305,0.04391,89741.0,89740.0,0.00443451]
[1763569878406,0.3608,89741.0,89726.0,0.00027863]
[1763569878607,0.3608,89727.0,89700.0,0.3608]
[1763569878811,0.3608,89718.0,89710.0,0.00219803]
[1763569879003,0.10848,89717.0,89700.0,0.3608]
[1763569879201,0.3608,89709.0,89700.0,0.00219803]
[1763569879610,8.966e-05,89708.0,89700.0,0.00219803]
[1763569879803,8.966e-05,89708.0,89696.0,0.00011167]
[1763569880113,8.966e-05,89708.0,89700.0,0.00219803]
[1763569880315,0.10848,89707.0,89700.0,0.00319803]
[1763569880506,0.10848,89706.0,89700.0,0.00319803]
[1763569880915,0.10848,89706.0,89700.0,0.00219803]
[1763569881111,8.966e-05,89708.0,89707.0,0.02256]
[1763569881304,8.966e-05,89708.0,89707.0,0.04388]
[1763569881712,0.36088966,89708.0,89698.0,0.01336]
[1763569881914,0.36088966,89708.0,89700.0,0.00219803]
[1763569883311,0.36088966,89708.0,89707.0,0.04388]
[1763569883708,0.46944966,89708.0,89698.0,0.01336]
[1763569883904,0.46944966,89708.0,89700.0,0.00219803]
[1763569885314,0.46944966,89708.0,89700.0,0.00319803]
[1763569885816,0.46944966,89708.0,89700.0,0.00219803]
[1763569886312,8.966e-05,89708.0,89707.0,0.04566]
[1763569886513,8.966e-05,89708.0,89707.0,0.40646]
[1763569886710,0.10856,89712.0,89711.0,0.04566]
[1763569887214,0.10856,89712.0,89711.0,0.02266]
[1763569887617,0.10870287,89712.0,89711.0,0.02266]
[1763569888214,0.10870287,89712.0,89700.0,0.3608]
[1763569888415,0.3608,89703.0,89700.0,0.00219803]